Cogmind - Beta 14 @@@ ROGUE MODE // 2024.10.01 @ 11:26:14 Player: Dazz Result: Destroyed by G-47 Trooper with Particle Gun Performance ------------- Evolutions (0) 0 Regions Visited (1) 200 Robots Destroyed (11) 55 Value Destroyed (185) 185 Prototype IDs (0) 0 Alien Tech Used (0) 0 Bonus (0) 0 TOTAL SCORE: 440 Bonus ------- None Cogmind --------- Core Integrity 0/250 Matter 290/300 Energy 100/100 System Corruption 0% Temperature Cool (20) Movement Core (150) Ox2 Location -10/Materials Parts ------- > --- POWER (1) -------- (None) > --- PROPULSION (2) --- (None) > --- UTILITY (2) ------ Small Storage Unit Signal Interpreter > --- WEAPON (2) ------- Small Laser Light Assault Rifle > --- INVENTORY (8) ---- Ion Engine Seismic Detector Mining Laser Peak State ------------ > --- POWER ------------ Ion Engine > --- PROPULSION ------- Compact Wheel Compact Wheel > --- UTILITY ---------- Small Storage Unit Seismic Detector > --- WEAPON ----------- Light Assault Rifle > --- INVENTORY -------- Ion Engine Mining Laser [Rating: 6] Favorites ----------- Power Ion Engine Engine Ion Engine Propulsion Compact Wheel Wheel Compact Wheel Utility Small Storage Unit Device Seismic Detector Storage Small Storage Unit Processor Signal Interpreter Weapon Light Assault Rifle Energy Gun Small Laser Ballistic Gun Light Assault Rifle Build | -11 -10 ------- Run | Yrd Mat Slots Evolved . | . . Power . | . . Propulsion . | . . Utility . | . . Weapon . | . . Parts Attached 10 | 5 5 Power 1 | 1 . Engine 1 | 1 . Core . | . . Reactor . | . . Propulsion 2 | 2 . Treads . | . . Leg . | . . Wheel 2 | 2 . Hover . | . . Flight . | . . Utility 3 | 1 2 Device 1 | . 1 Storage 1 | 1 . Processor 1 | . 1 Hackware . | . . Protection . | . . Artifact . | . . Weapon 4 | 1 3 Energy Gun 1 | . 1 Energy Cannon . | . . Ballistic Gun 3 | 1 2 Ballistic Cannon . | . . Launcher . | . . Special Weapon . | . . Impact Weapon . | . . Slashing Weapon . | . . Piercing Weapon . | . . Special Melee Weapon . | . . Unidentified Prototypes . | . . Parts Lost 4 | . 4 Power 1 | . 1 Propulsion 2 | . 2 Utility . | . . Weapon 1 | . 1 Highest Loss Streak 4 | . 4 To Critical Strikes . | . . Average Slot Usage (%) 73 | . 73 Engine 11 | . 11 Wheel 22 | . 22 Device 7 | . 7 Storage 14 | . 14 Processor 3 | . 3 Energy Gun 1 | . 1 Ballistic Gun 13 | . 13 Peak Build Rating 6 | 5 6 Average Rating 5 | 3 5 On Entrance 2 | . 5 Naked Turns . | . . Heaviest Build 12 | 11 12 Greatest Support 32 | 32 32 Greatest Overweight (x) 1 | . 1 Average Overweight (x) . | . . Largest Inventory Capacity 8 | 8 8 Average Capacity 7 | 6 8 Most Carried 4 | 3 4 Average Carried 1 | . 1 Final Capacity 8 | 8 8 Final Carried 3 | 1 3 Class Distribution -------------------- 100% | Mutant Dominant Class ---------------- Mutant | -10/Materials Resources | -11 -10 ----------- Run | Yrd Mat Matter Collected 342 | 250 92 Remotely . | . . Salvage Created 274 | . 274 Parts 24 | . 24 Haulers Intercepted . | . . Recyclers Shooed . | . . Parts Field Recycled . | . . Retrieved Matter . | . . Parts Self-Destructed . | . . Prevented . | . . Kills | -11 -10 ------- Run | Yrd Mat Combat Hostiles Destroyed 9 | . 9 Guns 9 | . 9 Classes Destroyed 4 | . 4 Tunneler 1 | . 1 Watcher 1 | . 1 Swarmer 6 | . 6 Grunt 3 | . 3 Best Kill Streak 3 | . 3 Combat Bots Only 3 | . 3 Max Kills in Single Turn 1 | . 1 Gunslinging . | . . Exploded . | . . Melee . | . . Uniques/NPCs Destroyed . | . . Combat | -11 -10 -------- Run | Yrd Mat Hostile Shots Fired 83 | . 83 Missed 21 | . 21 Damage Taken 631 | . 631 Core 266 | . 266 Absorbed by Shields . | . . Core Remaining (%) 100 | 100 . Volleys Fired 59 | . 59 Largest 2 | . 2 Hottest 60 | . 60 Shots Fired 69 | . 69 Gun 69 | . 69 Cannon . | . . Launcher . | . . Special . | . . Kinetic 59 | . 59 Thermal 10 | . 10 Explosive . | . . Electromagnetic . | . . Robot Hit Streak 8 | . 8 Robot Miss Streak 3 | . 3 Penetration Max . | . . Secondary Targets . | . . Shots Hit Robots 49 | . 49 Core Hits 22 | . 22 Critical Kills 1 | . 1 Critical Parts Destroyed . | . . Critical Strikes 1 | . 1 Destroy 1 | . 1 Melee Attacks . | . . Impact . | . . Slashing . | . . Piercing . | . . Sneak Attacks . | . . Combat Hostiles . | . . Follow-up Attacks . | . . Damage Inflicted 393 | . 393 Guns 393 | . 393 Cannons . | . . Explosions . | . . Melee . | . . Ramming . | . . Kinetic 330 | . 330 Thermal 63 | . 63 Explosive . | . . Electromagnetic . | . . Impact . | . . Slashing . | . . Piercing . | . . Highest Corruption . | . . Average Corruption . | . . Corruption Purged . | . . Corruption Blocked . | . . Overload Shots . | . . Overflow Damage . | . . Projectiles . | . . Explosions . | . . Melee . | . . Knockbacks . | . . Impact . | . . Kinetic . | . . Secondary . | . . Self-Inflicted Damage . | . . Shots . | . . Rammed . | . . Targets Rammed . | . . Kicked . | . . Crushed . | . . Highest Temperature 29 | . 29 Average Temperature 10 | . 10 Received Heat Transfer 216 | . 216 Siege Activations . | . . Robots Corrupted . | . . Combat Hostiles . | . . Parts Fried . | . . Impact Corruptions . | . . Robots Melted . | . . Combat Hostiles . | . . Parts Melted . | . . Heat Transferred 150 | . 150 Parts Sabotaged . | . . Parts Stolen . | . . Parts Stripped . | . . Power Chain Reactions . | . . Alert | -11 -10 ------- Run | Yrd Mat Peak Influence 272 | . 272 Initial . | . . Average 84 | . 96 Maximum Alert Level 1 | . 1 Low Security (%) 87 | 100 85 Level 1 12 | . 14 Level 2 . | . . Level 3 . | . . Level 4 . | . . Level 5 . | . . High Security . | . . Max Security . | . . Squads Dispatched 1 | . 1 Investigation . | . . Extermination . | . . Reinforcement 1 | . 1 Assault . | . . Garrison . | . . Intercept . | . . Searches Triggered . | . . Construction Impeded . | . . Haulers Reinforced . | . . Active Scanning Responses . | . . Cargo Convoy Interrupts . | . . Stealth | -11 -10 --------- Run | Yrd Mat Distress Signals 1 | . 1 Communications Jammed . | . . Distress Signals . | . . Times Spotted 18 | . 18 Peak Tracking Total 8 | . 8 Tactical Retreats 1 | . 1 Traps | -11 -10 ------- Run | Yrd Mat Traps Triggered . | . . Indirectly . | . . Trap Hack Attempts . | . . Triggered . | . . Disarmed . | . . Reprogrammed . | . . Reused . | . . Traps Extracted . | . . Installed . | . . Triggered . | . . Machines | -11 -10 ---------- Run | Yrd Mat Machines Disabled . | . . Max in Single Turn . | . . Machines Repaired . | . . Machines Dismantled . | . . Machines Sabotaged . | . . Overloaded Fab Kills . | . . Hacking | -11 -10 --------- Run | Yrd Mat Machines Accessed 1 | . 1 Terminals 1 | . 1 Fabricators . | . . Repair Stations . | . . Recycling Units . | . . Scanalyzers . | . . Garrison Access . | . . Total Hacks 2 | . 2 Successful . | . . Failed 2 | . 2 Catastrophic . | . . Database Lockouts . | . . Manual 2 | . 2 Terminals 2 | . 2 Fabricators . | . . Repair Stations . | . . Recycling Units . | . . Scanalyzers . | . . Garrison Access . | . . Terminal Hacks . | . . Fabricator Hacks . | . . Repair Station Hacks . | . . Recycling Unit Hacks . | . . Scanalyzer . | . . Garrison Access Hacks . | . . Unauthorized Hacks . | . . Terminals . | . . Fabricators . | . . Repair Stations . | . . Recycling Units . | . . Scanalyzers . | . . Garrison Access . | . . Data Cores Recovered . | . . Used . | . . Hacking Detections 1 | . 1 Full Trace Events . | . . Feedback Events . | . . Feedback Blocked . | . . Robot Schematics Acquired . | . . Robots Built . | . . Authchips . | . . Time . | . . Total Robot Build Rating . | . . Part Schematics Acquired . | . . Parts Built . | . . Authchips . | . . Time . | . . Total Part Build Rating . | . . Parts Repaired . | . . Time . | . . Parts Recycled . | . . Recycled Matter . | . . Retrieved Matter . | . . Retrieved Components . | . . Parts Scanalyzed . | . . Part Schematics Acquired . | . . Parts Damaged . | . . Bothacking | -11 -10 ------------ Run | Yrd Mat Used RIF Installer . | . . Robots Hacked . | . . Non-combat . | . . Combat . | . . Robot Hacks Applied . | . . Relay Couplers Released . | . . Fabnet Peak Effective % . | . . Robots Rewired . | . . Allies Hacked . | . . Hacks Repelled . | . . Allies | -11 -10 -------- Run | Yrd Mat Total Allies . | . . Largest Group . | . . Highest-Rated Group . | . . Highest-Rated Ally . | . . Total Orders . | . . Ally Attacks . | . . Total Damage . | . . Kills . | . . Allies Corrupted . | . . Allies Melted . | . . Intel | -11 -10 ------- Run | Yrd Mat Robot Analysis Total . | . . Derelict Logs Recovered . | . . Drone Launches . | . . Drone Recoveries . | . . Exploration | -11 -10 ------------- Run | Yrd Mat Turns Passed 431 | 52 379 Spaces Moved 261 | 42 219 Core 3 | 1 2 Treads . | . . Legs . | . . Wheels 258 | 41 217 Hover . | . . Flight . | . . Fastest Speed 50 | 50 100 Average Speed 99 | 98 100 Slowest Speed 100 | 100 100 Overloaded Moves . | . . Propulsion Burnouts . | . . Robots Hopped . | . . Cave-ins Triggered . | . . Exploration Rate (%) 19 | 3 35 Regions Visited 1 Branch Regions . Pre-discovered Areas . | . . Known Exits Taken . | . . Unknown Exits Taken 1 | 1 . Scrap Searched . | . . Spaces Dug . | . . Terrain Destroyed . | . . Melee . | . . Projectile . | . . AOE . | . . Terrain Rammed . | . . Walls Destroyed . | . . Machines Disabled . | . . Actions | -11 -10 --------- Run | Yrd Mat Total 375 | 52 323 Wait 33 | . 33 Move 260 | 41 219 Hop . | . . Pick Up 11 | 6 5 Fast Attach . | . . Attach 10 | 5 5 Detach 2 | . 2 Swap . | . . Drop . | . . Fire 59 | . 59 Melee . | . . Ram . | . . Kick . | . . Crush . | . . Escape Stasis . | . . Rewire . | . . Trap . | . . Miscellaneous . | . . Route ------- -11/Scrapyard -10/Materials (discovered 2 exits: [*Mat] / [*Min]) History --------- Turn | Location | Event 20 | -11/Scrapyard | Discovered new exit (range 15) 53 | -11/Scrapyard | Entered Materials 243 | -10/Materials | Discovered new exit (range 14) 275 | -10/Materials | Discovered new exit (range 15) 312 | -10/Materials | Build established: Mutant 375 | -10/Materials | Core integrity fell below 50% 415 | -10/Materials | Core integrity fell below 20% 429 | -10/Materials | Lost 4 parts (1p2n1w) 432 | -10/Materials | Destroyed by G-47 Trooper with Particle Gun Last Messages --------------- 00361_ Ion Engine destroyed. 00365_ S-10 Pest destroyed. 00368_ Com. Wheel destroyed. 00377_ S-10 Pest destroyed. 00378_ Acquired 6 matter. 00380_ Acquired 1 matter. 00382_ G-34 Mercenary destroyed. 00383_ Acquired 1 matter. 00396_ K-01 Serf collects debris. 00398_ Acquired 1 matter. 00398_ Lgt. Assault Rifle destroyed. 00400_ Acquired Lgt. Assault Rifle. 00401_ K-01 Serf collects debris. 00403_ Acquired Sml. Laser. 00404_ K-01 Serf cleans the Matter Filter. 00416_ G-34 Mercenary suffers critical hit (Destroy). 00416_ G-34 Mercenary destroyed. 00421_ S-10 Pest destroyed. 00422_ Acquired 20 matter. Map ----- +----------------------------------------------------+ | ??????????? #???????##"|||"##???????????? | | ??????????? #???????#"" ""#???????????? | | ??????????# < #???????# #???????????? | | ??????????# ????????# < #???????????? | | ?????????## ????????# #???????????? | | ????????? ?????????# ????????????? | | ?????????? #########??# ?????????????? | | ??????????? ## #???# ###########???? | | ????????????# ## #??## # #???? | | ????????????# ^ + """ #??#T + #???? | | ????????????# # """ #??## # #???? | | ????????????# ^# """ #???# # #???? | | ????????????#% ^ #? ????# # #???? | | ????????????# ####+####### # #???? | | ????????????# # #???? | | ????????????#^ # #???? | | ????????????#%|"""" """" ###########???? | | ????????????#! """" """" ###########????????? | | ????????????# """" """" # ! #????????? | | ????????????# # #????????? | | ????????????# % +%""" """ #????????? | | ????????????# = !% #%""" """ #????????? | | ???????###### ####g####### """ """ #????????? | | / + %===%*[#?# #????????? | | ??"" """ #### #####"""""%= #?# #????????? | | ?????"??????# #???#"""""=@ #?# #????????? | | ????????????# #???#""""" #?######+####????????? | | ????????????# #???#""""" ###! #?????????? | | ????????????# #???#""""" ##! #?????????? | | ????????????# #???#""""" ##! #?????????? | | ????????????# #?????"""" ##! #?????????? | | ????????????# ??????? ##! = #?????????? | | ????????????# ???????#########! ## ##?????????? | | ????????????? ???????????????##### #??????????? | | ????????????? ???????????????????# %#??????????? | | ????????????? ???????????????##### #??????????? | | ?????????????+???????????????#]] #??????????? | | ?????????????????????????????#]] #??????????? | | ?????????????????????????????#** #??????????? | | ?????????????????????????????#** +??????????? | | ?????????????????????????????#[[ ######?????? | | ?????????????????????????????#[[ ## ##????? | | ?????????????????????????????##### # #????? | | ????????????????????????########## # #????? | | ????????????????????????# # #????? | | ????????????????????????# """ # # #####????? | | ????????????????????????# """ # ###????????? | | ????????????????????????# """ # #??????????? | | ????????????????????????# + #??????????? | | ????????????????????????# # ##########?? | +----------------------------------------------------+ Best States ------------- Heat Dissipation 25 Energy Generation 10 Energy Capacity 250 Matter Stores 300 Matter Capacity 300 Sight Range 16 Terrain Scan Density 10 Evasion (%) 40 Item Schematics ----------------- None Robot Schematics ------------------ None Fabricated ------------ Nothing Alien Tech Used ----------------- None Achievements -------------- None Challenges ------------ None Game ------ Seed HardlightElectronField Manual? 0 Play Time 00:07:37 Cumulative 7.0 hours Start 2024.10.01 @ 11:02:56 End 2024.10.01 @ 11:26:14 Sessions 2 Manual Loads 0 Difficulty Rogue Special Mode None Game No. 20 Rogue 20 Adventurer 0 Explorer 0 Win Type - Total 0 Types 0/0/0/0/0/0/0/0/0 Lore% 2 Gallery% 8 Achievement% 10 Wizard Run 0 Options --------- Layout 1 ASCII 0 Keyboard 1 Movement Numpad Keybinds 0 Fullscreen 2 Font 32/SmallcapsGlow Map View 50x35 Zoom Use 0% Tactical HUD 1 Map Filters NONE Filters NONE Steam 1 RUN: ff4b03c4-ef75-4f8a-a823-e495a1bd9386